Cogmind - Beta 14 @@@ ROGUE MODE // 2024.12.08 @ 01:32:28 Player: Ayre223 Result: Self-destructed Performance ------------- Evolutions (1) 500 Regions Visited (3) 600 Robots Destroyed (13) 65 Value Destroyed (324) 324 Prototype IDs (0) 0 Alien Tech Used (0) 0 Bonus (96) 96 TOTAL SCORE: 1585 Bonus ------- Follower Combat Kills 96 Cogmind --------- Core Integrity 298/400 Matter 300/300 Energy 100/100 System Corruption 0% Temperature Cool (6) Movement Core (350) Ox6 Location -9/Materials Parts ------- > --- POWER (1) -------- (None) > --- PROPULSION (3) --- (None) > --- UTILITY (3) ------ Large Storage Unit Structural Scanner > --- WEAPON (2) ------- (None) > --- INVENTORY (15) --- Light Ion Engine Heat Sink Heat Sink Small Storage Unit Structural Scanner Experimental Sensor Array EM Pulse Gun Particle Gun Light EM Pulse Cannon Light Assault Rifle Peak State ------------ > --- POWER ------------ Light Nuclear Core > --- PROPULSION ------- Light Treads Light Treads > --- UTILITY ---------- Large Storage Unit Structural Scanner Sensor Array > --- WEAPON ----------- Small Laser Light Assault Rifle > --- INVENTORY -------- Ion Engine Heat Sink Heat Sink Small Storage Unit Structural Scanner Experimental Sensor Array EM Pulse Gun Particle Gun Light EM Pulse Cannon Light Assault Rifle [Rating: 12] Favorites ----------- Power Ion Engine Engine Ion Engine Power Core Light Nuclear Core Propulsion Light Treads Treads Light Treads Utility Structural Scanner Device Structural Scanner Storage Large Storage Unit Weapon Small Laser Energy Gun Small Laser Ballistic Gun Light Assault Rifle Build | -11 -10 -10 -9 ------- Run | Yrd Mat Min Mat Slots Evolved 2 | . . . 2 Power . | . . . . Propulsion 1 | . . . 1 Utility 1 | . . . 1 Weapon . | . . . . Parts Attached 18 | 6 6 3 3 Power 4 | 1 1 1 1 Engine 3 | 1 1 . 1 Core 1 | . . 1 . Reactor . | . . . . Propulsion 3 | 2 1 . . Treads 3 | 2 1 . . Leg . | . . . . Wheel . | . . . . Hover . | . . . . Flight . | . . . . Utility 4 | 1 2 . 1 Device 2 | . 1 . 1 Storage 2 | 1 1 . . Processor . | . . . . Hackware . | . . . . Protection . | . . . . Artifact . | . . . . Weapon 7 | 2 2 2 1 Energy Gun 5 | 2 2 1 . Energy Cannon . | . . . . Ballistic Gun 2 | . . 1 1 Ballistic Cannon . | . . . . Launcher . | . . . . Special Weapon . | . . . . Impact Weapon . | . . . . Slashing Weapon . | . . . . Piercing Weapon . | . . . . Special Melee Weapon . | . . . . Unidentified Prototypes . | . . . . Parts Lost 8 | . . 1 7 Power 2 | . . . 2 Propulsion 2 | . . . 2 Utility 1 | . . . 1 Weapon 3 | . . 1 2 Highest Loss Streak 5 | . . 1 5 To Critical Strikes . | . . . . Average Slot Usage (%) 92 | . 90 100 86 Engine 6 | . 13 7 1 Core 6 | . . 6 9 Treads 25 | . 28 28 20 Device 15 | . 6 14 21 Storage 12 | . 14 14 11 Energy Gun 20 | . 27 27 9 Ballistic Gun 4 | . . . 12 Peak Build Rating 12 | 6 7 11 12 Average Rating 8 | 4 6 8 10 On Entrance 5 | . 6 7 10 Naked Turns . | . . . . Heaviest Build 29 | 13 29 29 29 Greatest Support 40 | 40 40 40 40 Greatest Overweight (x) 1 | . . . 1 Average Overweight (x) . | . . . . Largest Inventory Capacity 15 | 8 15 15 15 Average Capacity 13 | 7 10 15 15 Most Carried 11 | 3 8 11 11 Average Carried 7 | 1 3 7 9 Final Capacity 15 | 8 15 15 15 Final Carried 10 | 2 6 10 10 Class Distribution -------------------- 100% | Mutant Dominant Class ---------------- Mutant | -10/Materials Mutant | -10/Mines Mutant | -9/Materials Resources | -11 -10 -10 -9 ----------- Run | Yrd Mat Min Mat Matter Collected 396 | 211 38 96 51 Remotely . | . . . . Salvage Created 413 | . 38 164 211 Parts 20 | . 3 5 12 Haulers Intercepted . | . . . . Recyclers Shooed . | . . . . Parts Field Recycled . | . . . . Retrieved Matter . | . . . . Parts Self-Destructed . | . . . . Prevented . | . . . . Kills | -11 -10 -10 -9 ------- Run | Yrd Mat Min Mat Combat Hostiles Destroyed 13 | . 1 3 9 Guns 13 | . 1 3 9 Classes Destroyed 2 | . 1 . 1 Swarmer 6 | . . . 6 Grunt 7 | . 1 3 3 Best Kill Streak 3 | . 1 2 3 Combat Bots Only 3 | . 1 2 3 Max Kills in Single Turn 1 | . 1 1 1 Gunslinging . | . . . . Exploded . | . . . . Melee . | . . . . Uniques/NPCs Destroyed . | . . . . Combat | -11 -10 -10 -9 -------- Run | Yrd Mat Min Mat Hostile Shots Fired 129 | . 22 21 86 Missed 39 | . 4 8 27 Damage Taken 979 | . 170 192 617 Core 145 | . 10 33 102 Absorbed by Shields . | . . . . Core Remaining (%) 91 | 100 . 82 . Volleys Fired 53 | . 4 14 35 Largest 2 | . 2 2 2 Hottest 80 | . 80 80 60 Shots Fired 106 | . 8 28 70 Gun 106 | . 8 28 70 Cannon . | . . . . Launcher . | . . . . Special . | . . . . Kinetic 51 | . . . 51 Thermal 47 | . 4 24 19 Explosive . | . . . . Electromagnetic 8 | . 4 4 . Robot Hit Streak 8 | . 2 8 7 Robot Miss Streak 9 | . 2 3 9 Penetration Max . | . . . . Secondary Targets 2 | . . . 2 Max Gunslinging Chain 1 | . . . 1 Shots Hit Robots 64 | . 4 21 39 Core Hits 28 | . 2 8 18 Critical Kills . | . . . . Critical Parts Destroyed . | . . . . Critical Strikes 2 | . . . 2 Destroy 2 | . . . 2 Melee Attacks . | . . . . Impact . | . . . . Slashing . | . . . . Piercing . | . . . . Sneak Attacks . | . . . . Combat Hostiles . | . . . . Follow-up Attacks . | . . . . Damage Inflicted 644 | . 51 230 363 Guns 644 | . 51 230 363 Cannons . | . . . . Explosions . | . . . . Melee . | . . . . Ramming . | . . . . Kinetic 254 | . . . 254 Thermal 313 | . 11 193 109 Explosive . | . . . . Electromagnetic 77 | . 40 37 . Impact . | . . . . Slashing . | . . . . Piercing . | . . . . Highest Corruption . | . . . . Average Corruption . | . . . . Corruption Purged . | . . . . Corruption Blocked . | . . . . Overload Shots . | . . . . Overflow Damage . | . . . . Projectiles . | . . . . Explosions . | . . . . Melee . | . . . . Knockbacks . | . . . . Impact . | . . . . Kinetic . | . . . . Secondary . | . . . . Self-Inflicted Damage . | . . . . Shots . | . . . . Rammed . | . . . . Targets Rammed . | . . . . Kicked . | . . . . Crushed . | . . . . Highest Temperature 264 | . 102 264 51 Average Temperature 60 | . 53 101 16 Received Heat Transfer 381 | . 36 138 207 Effects 3 | . . 3 . Energy Bleed 1 | . . 1 . Interference 2 | . . 2 . Siege Activations . | . . . . Robots Corrupted . | . . . . Combat Hostiles . | . . . . Parts Fried . | . . . . Impact Corruptions . | . . . . Robots Melted . | . . . . Combat Hostiles . | . . . . Parts Melted 1 | . . 1 . Heat Transferred 725 | . 25 450 250 Parts Sabotaged . | . . . . Parts Stolen . | . . . . Parts Stripped . | . . . . Power Chain Reactions . | . . . . Alert | -11 -10 -10 -9 ------- Run | Yrd Mat Min Mat Peak Influence 169 | . 98 169 150 Initial 65 | . . . 65 Average 39 | . 53 23 50 Maximum Alert Level . | . . . . Low Security (%) 100 | 100 100 100 100 Level 1 . | . . . . Level 2 . | . . . . Level 3 . | . . . . Level 4 . | . . . . Level 5 . | . . . . High Security . | . . . . Max Security . | . . . . Squads Dispatched 3 | . 1 1 1 Investigation . | . . . . Extermination . | . . . . Reinforcement 2 | . 1 . 1 Assault 1 | . . 1 . Garrison . | . . . . Intercept . | . . . . Searches Triggered . | . . . . Construction Impeded . | . . . . Haulers Reinforced . | . . . . Active Scanning Responses . | . . . . Cargo Convoy Interrupts . | . . . . Stealth | -11 -10 -10 -9 --------- Run | Yrd Mat Min Mat Distress Signals 1 | . . . 1 Communications Jammed . | . . . . Distress Signals . | . . . . Times Spotted 38 | . 9 10 19 Peak Tracking Total 5 | . 5 4 5 Tactical Retreats 1 | . . . 1 Traps | -11 -10 -10 -9 ------- Run | Yrd Mat Min Mat Traps Triggered 2 | . 2 . . Indirectly . | . . . . Trap Hack Attempts . | . . . . Triggered . | . . . . Disarmed . | . . . . Reprogrammed . | . . . . Reused . | . . . . Traps Extracted . | . . . . Installed . | . . . . Triggered . | . . . . Machines | -11 -10 -10 -9 ---------- Run | Yrd Mat Min Mat Machines Disabled . | . . . . Max in Single Turn . | . . . . Machines Repaired . | . . . . Machines Dismantled . | . . . . Machines Sabotaged . | . . . . Overloaded Fab Kills . | . . . . Hacking | -11 -10 -10 -9 --------- Run | Yrd Mat Min Mat Machines Accessed 6 | . 4 . 2 Terminals 6 | . 4 . 2 Fabricators . | . . . . Repair Stations . | . . . . Recycling Units . | . . . . Scanalyzers . | . . . . Garrison Access . | . . . . Total Hacks 13 | . 10 . 3 Successful 5 | . 2 . 3 Failed 8 | . 8 . . Catastrophic 2 | . 2 . . Database Lockouts . | . . . . Manual 2 | . 1 . 1 Terminals 13 | . 10 . 3 Fabricators . | . . . . Repair Stations . | . . . . Recycling Units . | . . . . Scanalyzers . | . . . . Garrison Access . | . . . . Terminal Hacks 5 | . 2 . 3 Unreport Threat 1 | . . . 1 Recall Investigation 1 | . 1 . . Hauler Manifests 1 | . . . 1 Zone Layout 2 | . 1 . 1 Fabricator Hacks . | . . . . Repair Station Hacks . | . . . . Recycling Unit Hacks . | . . . . Scanalyzer . | . . . . Garrison Access Hacks . | . . . . Unauthorized Hacks . | . . . . Terminals . | . . . . Fabricators . | . . . . Repair Stations . | . . . . Recycling Units . | . . . . Scanalyzers . | . . . . Garrison Access . | . . . . Data Cores Recovered . | . . . . Used . | . . . . Hacking Detections 5 | . 4 . 1 Full Trace Events . | . . . . Feedback Events . | . . . . Feedback Blocked . | . . . . Robot Schematics Acquired . | . . . . Robots Built . | . . . . Authchips . | . . . . Time . | . . . . Total Robot Build Rating . | . . . . Part Schematics Acquired . | . . . . Parts Built . | . . . . Authchips . | . . . . Time . | . . . . Total Part Build Rating . | . . . . Parts Repaired . | . . . . Time . | . . . . Parts Recycled . | . . . . Recycled Matter . | . . . . Retrieved Matter . | . . . . Retrieved Components . | . . . . Parts Scanalyzed . | . . . . Part Schematics Acquired . | . . . . Parts Damaged . | . . . . Bothacking | -11 -10 -10 -9 ------------ Run | Yrd Mat Min Mat Used RIF Installer . | . . . . Robots Hacked . | . . . . Non-combat . | . . . . Combat . | . . . . Robot Hacks Applied . | . . . . Relay Couplers Released . | . . . . Fabnet Peak Effective % . | . . . . Robots Rewired . | . . . . Allies Hacked . | . . . . Hacks Repelled . | . . . . Allies | -11 -10 -10 -9 -------- Run | Yrd Mat Min Mat Total Allies 1 | . . 1 . Largest Group 1 | . . 1 1 Highest-Rated Group 31 | . . 31 31 Highest-Rated Ally 31 | . . 31 31 Total Orders . | . . . . Ally Attacks 13 | . . 12 1 Total Damage 190 | . . 168 22 Kills 6 | . . 6 . Allies Corrupted . | . . . . Allies Melted . | . . . . Intel | -11 -10 -10 -9 ------- Run | Yrd Mat Min Mat Robot Analysis Total . | . . . . Derelict Logs Recovered 1 | . . 1 . Drone Launches . | . . . . Drone Recoveries . | . . . . Exploration | -11 -10 -10 -9 ------------- Run | Yrd Mat Min Mat Turns Passed 1865 | 57 427 701 680 Spaces Moved 783 | 33 189 370 191 Core 8 | 8 . . . Treads 775 | 25 189 370 191 Legs . | . . . . Wheels . | . . . . Hover . | . . . . Flight . | . . . . Fastest Speed 50 | 50 160 160 160 Average Speed 160 | 133 160 160 164 Slowest Speed 240 | 160 160 160 240 Overloaded Moves . | . . . . Propulsion Burnouts . | . . . . Robots Hopped . | . . . . Cave-ins Triggered . | . . . . Exploration Rate (%) 35 | 3 40 72 27 Regions Visited 3 Branch Regions 1 Pre-discovered Areas 1 | . . 1 . Known Exits Taken . | . . . . Unknown Exits Taken 3 | 1 1 1 . Scrap Searched 1 | . . 1 . Spaces Dug . | . . . . Terrain Destroyed . | . . . . Melee . | . . . . Projectile . | . . . . AOE . | . . . . Terrain Rammed . | . . . . Walls Destroyed . | . . . . Machines Disabled . | . . . . Actions | -11 -10 -10 -9 --------- Run | Yrd Mat Min Mat Total 1298 | 46 305 451 496 Wait 417 | . 98 56 263 Move 780 | 32 188 369 191 Hop . | . . . . Pick Up 27 | 8 9 7 3 Fast Attach . | . . . . Attach 14 | 6 5 1 2 Detach . | . . . . Swap 4 | . 1 2 1 Drop 3 | . . 2 1 Fire 53 | . 4 14 35 Melee . | . . . . Ram . | . . . . Kick . | . . . . Crush . | . . . . Escape Stasis . | . . . . Rewire . | . . . . Trap . | . . . . Miscellaneous . | . . . . Route ------- -11/Scrapyard -10/Materials (discovered 2 exits: *Mat / [*Min]) -10/Mines -9/Materials (discovered 1 exit: [*Mat]) History --------- Turn | Location | Event 7 | -11/Scrapyard | Discovered new exit (range 16) 58 | -11/Scrapyard | Entered Materials 326 | -10/Materials | Build established: Mutant 415 | -10/Materials | Discovered new exit (range 4) 470 | -10/Materials | Discovered new exit (range 10) 485 | -10/Materials | Entered Mines 597 | -10/Mines | Found a damaged Exp. Sensor Array with a note attached 601 | -10/Mines | Found Prototype Device 608 | -10/Mines | Learned location of Zion (-7) 775 | -10/Mines | Found a hidden stash of uninstalled traps 983 | -10/Mines | Met a Derelict testing a Signal Generator 1156 | -10/Mines | Discovered new exit (range 12) 1186 | -10/Mines | Entered Materials 1186 | -9/Materials | Accompanied by 1 ally 1186 | -9/Materials | Evolved 2 slots: Propulsion x1, Utility x1 1344 | -9/Materials | Discovered new exit (range 9) 1866 | -9/Materials | Self-destructed Last Messages --------------- 01808_ K-01 Serf collects debris. 01809_ Lgt. Treads destroyed. 01810_ G-34 Mercenary destroyed. 01811_ K-01 Serf collects debris. 01815_ Acquired 13 matter. 01817_ Acquired 5 matter. 01819_ K-01 Serf collects debris. 01836_ W-16 Scout sends out distress signal. 01837_ Critical hit (Burn: +37). 01839_ Acquired Lgt. Ion Engine. 01840_ Y-45 Defender suffers critical hit (Destroy). 01840_ Lgt. Treads destroyed. 01849_ Sensor Array destroyed. 01850_ Y-45 Defender suffers critical hit (Destroy). 01854_ Ion Engine destroyed. 01854_ R-06 Scavenger collects Wheel. 01857_ U-05 Engineer builds a Door. 01864_ Lgt. Assault Rifle destroyed. Map ----- +----------------------------------------------------+ | ??###### """ ## < ## """ #??????????????????? | | ?? #??## """ ## ## """""#??????????????????? | | ?? ##### """ ## ## """""##?????????????????? | | ?? + ## ## """""##?????????????????? | | ##### ## ## """ ##?????????????????? | | ####??## [ ## ## ##### ?????????????? | | ###########+### ###+########### ?????????????? | | ######## % # ?????????????? | | + T % %% # ?????????????? | | ######## % # ?????????????? | | ######## #### ########### # ?????????????? | | ##????## ######+#### ## # ?????????????? | | ##????## ## # ## # ?????????????? | | ##????## ## # """" ## # ?????????????? | | ######## ## # """" ## ##?????????????? | | ######## ## # """" ## ###????????????? | | # ## | # =[%=## ###????????????? | | ## ### """ #####+### ###???????????? | | ## ### "" ## %=* #### ?????????? | | "" """ ## ### ## % T + ??????? | | "" """ ## ###= ## #### ??? | | "" """ ## ############# g#### #### ??? ??? | | ## ############# ##### ###????????????? | | ## #?????####### ##### ###????????????? | | ###+###?????????####### %##?## ##?????????????? | | ## ??? w r@##?## ##?????????????? | | ?????????? ##?## ##?????????????? | | ?????????? ##?## # ?????????????? | | ??????????############# ##?## # ?????????????? | | ?????????? ########### ##?## # ?????????????? | | ????????????????????? #^ ^##?## # ?????????????? | | ????????????????????? +^^^##?## # ?????????????? | | ????????????????????? # ##??? + ?????????????? | | ????????????????????? # ##??? # ?????????????? | | ?????????????????????## r ##?????????????????????? | | # ???????????# uY #?????????????????????? | | ######+###???????????? ???????????????????????? | | ?????????? ???????????????????????? | | ##??????????## ???????????????????????? | | ##??????????## ??????????????????????? | | ##### ##??????????####+##??????????????????????? | | ##### ? ##???????????? ??????????????????????? | | ?????????????????????????????????????????????????? | | ?????????????????????????????????????????????????? | | ?????????????????????????????????????????????????? | | ?????????????????????????????????????????????????? | | ?????????????????????????????????????????????????? | | ?????????????????????????????????????????????????? | | ?????????????????????????????????????????????????? | | ?????????????????????????????????????????????????? | +----------------------------------------------------+ Best States ------------- Heat Dissipation 28 Energy Generation 14 Energy Capacity 250 Matter Stores 300 Matter Capacity 300 Sight Range 16 Robot Scan Range 14 Terrain Scan Density 10 Evasion (%) 40 Recoil Reduction 2 Item Schematics ----------------- None Robot Schematics ------------------ None Fabricated ------------ Nothing Alien Tech Used ----------------- None Achievements -------------- None Challenges ------------ None Game ------ Seed TechCoolantSegregator Manual? 0 Play Time 00:10:37 Cumulative 11.7 hours Start 2024.12.08 @ 01:21:56 End 2024.12.08 @ 01:32:28 Sessions 1 Manual Loads 0 Difficulty Rogue Special Mode None Game No. 20 Rogue 20 Adventurer 0 Explorer 0 Win Type - Total 0 Types 0/0/0/0/0/0/0/0/0 Lore% 10 Gallery% 20 Achievement% 18 Wizard Run 0 Options --------- Layout 1 ASCII 0 Keyboard 0 Movement Mouse Keybinds 0 Fullscreen 1 Font 24/Smallcaps Map View 50x35 Zoom Use 0% Tactical HUD 1 Map Filters NONE Filters NONE Steam 1 RUN: 4e12a20c-2dc3-4f25-b232-3b8c1c9139bf